bitfinex/quotes_BTCUSD_20250513
["timestamp","ask_amount","ask_price","bid_price","bid_amount"]
[1747103485226,0.21509514,102280.0,102270.0,0.2683772]
[1747103485465,0.21509514,102280.0,102270.0,0.47371591]
[1747103485692,0.21509514,102280.0,102270.0,0.51786583]
[1747103485897,0.21509514,102280.0,102270.0,0.50847131]
[1747103486351,0.21509514,102280.0,102270.0,0.52301216]
[1747103486959,0.21509514,102280.0,102270.0,0.52901216]
[1747103487136,0.02933047,102280.0,102270.0,0.53878962]
[1747103487554,0.02933047,102280.0,102270.0,0.54856698]
[1747103488188,0.01955349,102280.0,102270.0,0.54856698]
[1747103488417,0.02933047,102280.0,102270.0,0.54856698]
[1747103488629,0.2248726,102280.0,102270.0,0.5040346]
[1747103488834,0.2248726,102280.0,102270.0,0.48793451]
[1747103489059,0.2248726,102280.0,102270.0,0.50748953]
[1747103489290,0.2248726,102280.0,102270.0,0.52268953]
[1747103489732,0.2248726,102280.0,102270.0,0.53878953]
[1747103490176,0.02055418,102280.0,102270.0,0.54856689]
[1747103490383,0.00100069,102280.0,102270.0,0.9720313]
[1747103491657,0.00100069,102280.0,102270.0,0.89669839]
[1747103492954,0.00100069,102280.0,102270.0,1.29669839]
[1747103493799,0.00100069,102280.0,102270.0,1.63669839]
[1747103496884,0.00918929,102300.0,102290.0,0.25614975]
[1747103497094,0.00918929,102300.0,102290.0,0.50842695]
[1747103497308,4.867e-05,102300.0,102290.0,0.6188221]
[1747103498113,0.00104867,102300.0,102290.0,0.6188221]
[1747103498553,0.00104867,102300.0,102290.0,0.9669536]
[1747103498990,0.00504867,102300.0,102290.0,0.9669536]
[1747103499423,0.0286878,102310.0,102300.0,0.22482777]
[1747103499424,0.00914062,102310.0,102300.0,0.22482777]
[1747103499666,0.00914062,102310.0,102300.0,0.95269077]
[1747103499908,0.0286857,102320.0,102310.0,0.27094665]
[1747103500125,0.02873437,102320.0,102310.0,0.52322385]
[1747103500368,0.02873418,102320.0,102310.0,0.52322385]
[1747103500588,0.04827993,102320.0,102310.0,0.61907815]
[1747103500792,0.03913931,102320.0,102310.0,0.61907815]
[1747103501017,0.02936634,102320.0,102310.0,0.61907815]
[1747103501229,0.03036634,102320.0,102310.0,0.61907815]
[1747103501658,0.04013931,102320.0,102310.0,0.61907815]
[1747103501866,0.04991237,102320.0,102310.0,0.61907815]
[1747103502070,0.05191237,102320.0,102310.0,0.61907815]
[1747103502294,0.04213997,102320.0,102310.0,0.61907815]
[1747103502481,0.05191313,102320.0,102310.0,0.61907815]
[1747103503241,0.0519139,102320.0,102310.0,0.61907815]
[1747103503663,0.0519139,102320.0,102310.0,0.62844207]
[1747103503876,0.04214064,102320.0,102310.0,0.37616487]
[1747103504084,0.04214064,102320.0,102310.0,0.62844207]
[1747103504749,0.01282116,102320.0,102310.0,0.37616487]
[1747103504958,0.02259394,102320.0,102310.0,0.62844207]
[1747103505375,0.032367,102320.0,102310.0,0.62844207]
[1747103505595,0.032367,102320.0,102310.0,0.53258777]
[1747103507065,0.04214016,102320.0,102310.0,0.52281423]
[1747103507295,0.05191342,102320.0,102310.0,0.5423616]
[1747103507497,0.24737862,102320.0,102310.0,0.5130404]
[1747103507701,0.23760613,102320.0,102310.0,0.53258825]
[1747103507896,0.23760613,102320.0,102310.0,0.54236198]
[1747103508347,0.23760613,102320.0,102310.0,0.55213562]
[1747103508579,0.22783335,102320.0,102310.0,0.54236198]
[1747103509246,0.19548431,102310.0,102300.0,0.2828772]
[1747103509477,0.21505337,102300.0,102290.0,0.82817576]
[1747103509715,0.21505337,102300.0,102290.0,0.46735168]
[1747103509940,0.21505337,102300.0,102290.0,0.2522772]
[1747103510675,0.21505337,102300.0,102290.0,0.27182935]
[1747103511303,0.21505337,102300.0,102290.0,0.26205332]
[1747103511730,0.21505337,102300.0,102290.0,0.2522772]
[1747103512009,0.21505337,102300.0,102290.0,0.2552772]
[1747103512218,0.21505337,102300.0,102290.0,0.2572772]
[1747103512845,0.22417641,102300.0,102290.0,0.2572772]
[1747103515693,0.22417641,102300.0,102290.0,0.33236114]
[1747103515901,0.22417641,102300.0,102290.0,0.47757576]
[1747103516340,0.22417641,102300.0,102290.0,0.48735169]
[1747103516544,0.21440153,102300.0,102290.0,0.47757576]
[1747103516947,0.20527849,102300.0,102290.0,0.47757576]
[1747103517363,0.19550342,102300.0,102290.0,0.2572772]
[1747103517580,0.19550342,102300.0,102290.0,0.005]
[1747103517780,0.20462646,102300.0,102290.0,0.005]
[1747103518164,0.20462646,102300.0,102290.0,0.2572772]
[1747103518969,0.20462646,102300.0,102290.0,0.005]
[1747103519537,0.22072646,102300.0,102290.0,0.005]
[1747103519759,0.23732646,102300.0,102290.0,0.005]
[1747103520628,0.00977708,102280.0,102270.0,0.29941805]
[1747103520847,0.0195552,102270.0,102260.0,1.46113222]
[1747103520999,0.21511655,102270.0,102260.0,1.56676494]
[1747103521202,0.03911118,102270.0,102260.0,1.59108411]
[1747103521589,0.01955501,102270.0,102260.0,1.59108411]
[1747103521803,0.01955501,102270.0,102260.0,1.19108411]
[1747103522015,0.01955501,102270.0,102260.0,1.19157127]
[1747103522218,0.01955501,102270.0,102260.0,1.19557127]
[1747103522440,0.02933276,102270.0,102260.0,1.19557127]
[1747103522659,0.21511655,102270.0,102260.0,0.00448716]
[1747103523307,0.34217085,102270.0,102260.0,0.00448716]
[1747103523519,0.93444805,102270.0,102260.0,0.00448716]
[1747103523759,0.94129198,102270.0,102260.0,0.00448716]
[1747103523970,0.94129198,102270.0,102260.0,0.00048716]
[1747103523971,0.95957566,102270.0,102260.0,0.00048716]
[1747103524175,0.95957566,102270.0,102260.0,0.00548716]
[1747103524386,1.03788036,102270.0,102260.0,0.00548716]
[1747103524611,1.04788036,102270.0,102260.0,0.00048716]
[1747103525032,1.04988036,102270.0,102260.0,0.00048716]
[1747103525697,0.97157566,102270.0,102260.0,0.00048716]
[1747103528705,0.98157566,102270.0,102260.0,0.00048716]
[1747103529862,0.99603597,102270.0,102260.0,0.00048716]
[1747103531480,1.53831317,102270.0,102260.0,0.00048716]
[1747103531686,1.54285402,102270.0,102260.0,0.00048716]
[1747103531906,1.63373098,102270.0,102260.0,0.00048716]
[1747103532116,2.05633098,102270.0,102260.0,0.00048716]
[1747103533491,2.05433098,102270.0,102260.0,0.00048716]
[1747103533913,2.06933098,102270.0,102260.0,0.00148716]
[1747103534376,2.06233098,102270.0,102260.0,0.00148716]
[1747103534588,2.07133098,102270.0,102260.0,0.00248716]
[1747103536064,1.56677658,102270.0,102260.0,0.00248716]
[1747103536275,2.07133098,102270.0,102260.0,0.00248716]
[1747103537332,0.34,102230.0,102210.0,0.0318]
[1747103537473,0.51275072,102220.0,102210.0,0.09355337]
[1747103537900,0.51275072,102220.0,102210.0,0.10985337]
[1747103539486,0.51575072,102220.0,102210.0,0.03154867]
[1747103540127,0.51575072,102220.0,102210.0,4.867e-05]
[1747103540128,0.51275072,102220.0,102210.0,4.867e-05]
[1747103540477,0.85275072,102220.0,102210.0,0.00304867]
[1747103540676,1.12562792,102220.0,102210.0,0.00304867]
[1747103540889,1.13162792,102220.0,102210.0,0.00304867]
[1747103541344,1.13162792,102220.0,102210.0,0.00504867]
[1747103541928,0.87935072,102220.0,102210.0,0.00304867]
[1747103542171,0.88845692,102220.0,102210.0,0.00304867]
[1747103542381,1.14473412,102220.0,102210.0,0.00304867]
[1747103542597,1.16123412,102220.0,102210.0,4.867e-05]
[1747103542804,1.19119433,102220.0,102210.0,4.867e-05]
[1747103542999,1.19419433,102220.0,102210.0,4.867e-05]
[1747103543870,1.2259345,102220.0,102210.0,4.867e-05]
[1747103544283,1.22271859,102220.0,102210.0,4.867e-05]
[1747103544458,1.24271859,102220.0,102210.0,4.867e-05]
[1747103544668,1.21275838,102220.0,102210.0,4.867e-05]
[1747103545309,1.24271859,102220.0,102210.0,4.867e-05]
[1747103547691,1.21097842,102220.0,102210.0,4.867e-05]
[1747103548535,1.20097842,102220.0,102210.0,4.867e-05]
[1747103548715,1.17101821,102220.0,102210.0,4.867e-05]
[1747103549155,1.41612101,102220.0,102210.0,4.867e-05]
[1747103549362,1.09612101,102220.0,102210.0,0.03154867]
[1747103549559,0.65440101,102220.0,102210.0,0.03154867]
[1747103549759,0.87524101,102220.0,102210.0,0.03154867]
[1747103550586,0.65440101,102220.0,102210.0,0.03154867]
[1747103550795,0.86609481,102220.0,102210.0,0.03154867]
[1747103552273,0.86609481,102220.0,102210.0,0.01624867]
[1747103552667,0.87567857,102220.0,102210.0,0.01624867]
[1747103555217,0.87567857,102220.0,102210.0,0.03234867]
[1747103556623,0.86585481,102220.0,102210.0,0.03234867]
[1747103557680,0.64529481,102220.0,102210.0,0.03234867]
[1747103557938,0.20944051,102220.0,102210.0,0.28462587]
[1747103558363,0.20944051,102220.0,102210.0,0.03234867]
[1747103558572,0.19965642,102220.0,102210.0,0.03234867]
[1747103558925,0.19965642,102220.0,102210.0,0.03334867]
[1747103559334,0.29551072,102220.0,102210.0,0.03234867]
[1747103559714,0.29551072,102220.0,102210.0,0.03534867]
[1747103560139,0.29829481,102220.0,102210.0,0.03534867]
[1747103561089,0.29829481,102220.0,102210.0,0.03734867]
[1747103562435,0.29829481,102220.0,102210.0,0.00504867]
[1747103564306,0.51917481,102220.0,102210.0,0.00504867]
[1747103565641,1.17940532,102220.0,102210.0,0.00504867]
[1747103565904,1.47940532,102220.0,102210.0,0.00504867]
[1747103566372,1.47940532,102220.0,102210.0,4.867e-05]
[1747103566600,1.46940532,102220.0,102210.0,4.867e-05]
[1747103566811,1.78640532,102220.0,102210.0,4.867e-05]
[1747103568799,2.20928532,102220.0,102210.0,4.867e-05]
[1747103569064,2.15156252,102220.0,102210.0,4.867e-05]
[1747103569301,1.89928532,102220.0,102210.0,4.867e-05]
[1747103569987,1.99228532,102220.0,102210.0,4.867e-05]
[1747103570237,2.26410337,102220.0,102210.0,4.867e-05]
[1747103570482,0.31,102190.0,102170.0,0.0318]
[1747103570711,0.78347714,102180.0,102170.0,0.03189515]
[1747103570944,0.53119994,102180.0,102170.0,9.515e-05]
[1747103571170,0.90533734,102180.0,102170.0,9.515e-05]
[1747103571666,1.16761454,102180.0,102170.0,9.515e-05]
[1747103572130,1.16761454,102180.0,102170.0,0.00409515]
[1747103572984,1.16761454,102180.0,102170.0,0.00709515]
[1747103574381,1.75099174,102180.0,102170.0,0.00709515]
[1747103574626,1.56041492,102180.0,102170.0,0.00709515]
[1747103575124,1.86041492,102180.0,102170.0,0.00309515]
[1747103575380,2.30194426,102180.0,102170.0,0.00309515]
[1747103575879,2.30194426,102180.0,102170.0,9.515e-05]
[1747103576301,2.30594426,102180.0,102170.0,9.515e-05]
[1747103577015,1.88158668,102180.0,102170.0,9.515e-05]
[1747103577244,1.86423337,102180.0,102170.0,9.515e-05]
[1747103578368,2.11651057,102180.0,102170.0,9.515e-05]
[1747103578588,1.86423337,102180.0,102170.0,9.515e-05]
[1747103580284,1.85423337,102180.0,102170.0,9.515e-05]
[1747103580526,1.85423337,102180.0,102170.0,0.03099515]
[1747103581135,1.85423337,102180.0,102170.0,9.515e-05]
[1747103581341,2.12221057,102180.0,102170.0,9.515e-05]
[1747103581550,2.13221057,102180.0,102170.0,9.515e-05]
[1747103581806,2.11651057,102180.0,102170.0,9.515e-05]
[1747103582032,1.86407337,102180.0,102170.0,0.03129515]
[1747103582254,0.34055337,102180.0,102170.0,0.28357235]
[1747103582490,0.32594403,102180.0,102170.0,0.28357235]
[1747103582706,0.23008973,102180.0,102170.0,0.48911193]
[1747103583144,0.23008973,102180.0,102170.0,0.28357235]
[1747103583379,0.04014326,102180.0,102170.0,0.5134401]
[1747103583584,0.22509267,102180.0,102170.0,0.50365288]
[1747103583796,0.22609267,102180.0,102170.0,0.51265288]
[1747103584204,0.21630622,102180.0,102170.0,0.3071132]
[1747103584417,0.21730622,102180.0,102170.0,0.05029515]
[1747103584640,0.31316052,102180.0,102170.0,0.05029515]
[1747103586502,0.53944919,102180.0,102170.0,0.01909515]
[1747103586614,1.44172639,102180.0,102170.0,0.01909515]
[1747103587239,1.44072639,102180.0,102170.0,0.00909515]
[1747103587654,1.44072639,102180.0,102170.0,0.01309515]
[1747103588110,1.18844919,102180.0,102170.0,0.00909515]
[1747103588534,1.19044919,102180.0,102170.0,0.00909515]
[1747103589351,1.18944919,102180.0,102170.0,9.515e-05]
[1747103589766,1.18944919,102180.0,102170.0,0.00409515]
[1747103589973,1.18944919,102180.0,102170.0,9.515e-05]
[1747103590385,1.19144919,102180.0,102170.0,9.515e-05]
[1747103592280,1.44372639,102180.0,102170.0,9.515e-05]
[1747103592718,1.45372639,102180.0,102170.0,9.515e-05]
[1747103594924,1.20144919,102180.0,102170.0,9.515e-05]
[1747103595354,1.45942639,102180.0,102170.0,9.515e-05]
[1747103595563,1.47442639,102180.0,102170.0,9.515e-05]
[1747103596440,1.77442639,102180.0,102170.0,9.515e-05]
[1747103596643,0.21541105,102130.0,102120.0,0.2522772]
[1747103596847,0.21541105,102130.0,102120.0,0.26201464]
[1747103597055,0.21541105,102130.0,102120.0,0.25276524]
[1747103597258,0.21541105,102130.0,102120.0,0.28446524]
[1747103597467,0.21541105,102130.0,102120.0,0.29900609]
[1747103597675,0.21541105,102130.0,102120.0,0.04672889]
[1747103597896,0.21541105,102130.0,102120.0,0.29900609]
[1747103598521,0.21541105,102130.0,102120.0,0.03218804]
[1747103599150,0.21641105,102130.0,102120.0,0.04418804]
[1747103599382,0.32252499,102130.0,102120.0,0.05618804]
[1747103599576,0.31326535,102130.0,102120.0,0.05618804]
[1747103600882,0.32008967,102130.0,102120.0,0.05618804]
[1747103601373,0.32008967,102130.0,102120.0,0.03978804]
[1747103601590,0.31908967,102130.0,102120.0,0.02778804]
[1747103601805,0.32008967,102130.0,102120.0,0.03278804]
[1747103602028,0.32008967,102130.0,102120.0,0.01748804]
[1747103602243,0.67411492,102130.0,102120.0,0.00548804]
[1747103602465,1.20307492,102130.0,102120.0,0.00548804]
[1747103602873,1.20407492,102130.0,102120.0,0.00548804]
[1747103603081,1.20407492,102130.0,102120.0,0.00048804]
[1747103603082,1.20307492,102130.0,102120.0,0.00048804]
[1747103603289,1.46465014,102130.0,102120.0,0.00048804]
[1747103603496,1.46565014,102130.0,102120.0,0.00048804]
[1747103603721,1.45565014,102130.0,102120.0,0.00048804]
[1747103604137,1.20337294,102130.0,102120.0,0.00048804]
[1747103604920,0.90337294,102130.0,102120.0,0.00048804]
[1747103605281,0.90337294,102130.0,102120.0,0.03208804]
[1747103605282,0.68441294,102130.0,102120.0,0.03208804]
[1747103605402,0.68441294,102130.0,102120.0,0.28436524]
[1747103605403,0.66008967,102130.0,102120.0,0.28436524]
[1747103605608,0.32008967,102130.0,102120.0,0.28436524]
[1747103605821,0.31326535,102130.0,102120.0,0.28436524]
[1747103606455,0.31226535,102130.0,102120.0,0.28436524]
[1747103606859,0.31326535,102130.0,102120.0,0.28936524]
[1747103607096,0.31326535,102130.0,102120.0,0.03708804]
[1747103607514,0.31226535,102130.0,102120.0,0.03708804]
[1747103607682,0.31226535,102130.0,102120.0,0.28936524]
[1747103607881,0.31326535,102130.0,102120.0,0.29436524]
[1747103608395,0.31326535,102130.0,102120.0,0.04208804]
[1747103610246,0.21741105,102130.0,102120.0,0.57607896]
[1747103610445,0.20762009,102130.0,102120.0,0.54664244]
[1747103611076,0.20762009,102130.0,102120.0,0.75703131]
[1747103611077,0.002,102130.0,102120.0,0.75703131]
[1747103611334,0.02158182,102130.0,102120.0,0.78640734]
[1747103611553,0.05095527,102130.0,102120.0,0.78640754]
[1747103611769,0.05095527,102130.0,102120.0,0.79619936]
[1747103612217,0.24678411,102130.0,102120.0,0.77661562]
[1747103612442,0.23699344,102130.0,102120.0,0.50475411]
[1747103612661,0.21741162,102130.0,102120.0,0.52433881]
[1747103612889,0.20762028,102130.0,102120.0,0.04208804]
[1747103613109,0.30347458,102130.0,102120.0,0.04208804]
[1747103615718,0.30347458,102130.0,102120.0,0.29436524]
[1747103616172,0.20762028,102130.0,102120.0,0.29436524]
[1747103616405,0.21741143,102130.0,102120.0,0.77661582]
[1747103616638,0.21741143,102130.0,102120.0,0.82955609]
[1747103616871,0.21741143,102130.0,102120.0,0.30890609]
[1747103617744,0.21741143,102130.0,102120.0,0.05662889]
[1747103617957,0.21741143,102130.0,102120.0,0.30890609]
[1747103618601,0.21741143,102130.0,102120.0,0.51454651]
[1747103618810,0.21741143,102130.0,102120.0,0.52433871]
[1747103619040,0.21741143,102130.0,102120.0,0.77661591]
[1747103619247,0.21741143,102130.0,102120.0,0.79619984]
[1747103619457,0.23699363,102130.0,102120.0,0.88226232]
[1747103619674,0.23699363,102130.0,102120.0,0.89205433]
[1747103619871,0.22720277,102130.0,102120.0,0.86267781]
[1747103620108,0.22720277,102130.0,102120.0,0.77661562]
[1747103620304,0.01179115,102130.0,102120.0,0.28185323]
[1747103620553,0.01179115,102130.0,102120.0,0.79619935]
[1747103620554,0.03137326,102130.0,102120.0,0.79619935]
[1747103620766,0.03137326,102130.0,102120.0,0.78640763]
[1747103621189,0.2272021,102130.0,102120.0,0.78640763]
[1747103621397,0.2272021,102130.0,102120.0,0.79619945]
[1747103621614,0.2272021,102130.0,102120.0,0.78640763]
[1747103622760,0.20762009,102130.0,102120.0,0.30890609]
[1747103622964,0.19782884,102130.0,102120.0,0.30890609]
[1747103623173,0.19782884,102130.0,102120.0,0.77661582]
[1747103623794,0.01179125,102130.0,102120.0,0.79619955]
[1747103624029,0.22720249,102130.0,102120.0,0.79619975]
[1747103624145,0.22720249,102130.0,102120.0,0.53413063]
[1747103624358,0.22720249,102130.0,102120.0,0.52433862]
[1747103624586,0.22720249,102130.0,102120.0,0.51454651]
[1747103624788,0.20762028,102130.0,102120.0,0.05662889]
[1747103625008,0.20762028,102130.0,102120.0,0.04208804]
[1747103625156,0.30347458,102130.0,102120.0,0.04208804]
[1747103626132,0.30347458,102130.0,102120.0,0.29436524]
[1747103626133,0.31030144,102130.0,102120.0,0.29436524]
[1747103626990,0.31030144,102130.0,102120.0,0.04208804]
[1747103627623,0.31030144,102130.0,102120.0,0.34632636]
[1747103627856,0.31030144,102130.0,102120.0,0.29436524]
[1747103628268,0.22423829,102130.0,102120.0,0.77661543]
[1747103628528,0.21741143,102130.0,102120.0,0.77661543]
[1747103628741,0.002,102130.0,102120.0,0.78640715]
[1747103628950,0.01179077,102130.0,102120.0,0.78640715]
[1747103629163,0.02158182,102130.0,102120.0,0.78640715]
[1747103629365,0.02158182,102130.0,102120.0,0.88226145]
[1747103630016,0.02158182,102130.0,102120.0,0.78640715]
[1747103630641,0.03137307,102130.0,102120.0,0.78640715]
[1747103631324,0.01179057,102130.0,102120.0,1.44030145]
[1747103631536,0.01179077,102130.0,102120.0,1.44030145]
[1747103631737,0.02158173,102130.0,102120.0,1.44030145]
[1747103632381,0.01179077,102130.0,102120.0,1.84030145]
[1747103632964,0.01179067,102130.0,102120.0,1.84030145]
[1747103633435,0.02158153,102130.0,102120.0,1.84030145]
[1747103633624,0.002,102130.0,102120.0,1.93615575]
[1747103634062,0.01179067,102130.0,102120.0,1.93615575]
[1747103634305,0.02158153,102130.0,102120.0,1.84030145]
[1747103635816,0.002,102130.0,102120.0,1.84030145]
[1747103636038,0.02158153,102130.0,102120.0,1.84030145]
[1747103636253,0.03137258,102130.0,102120.0,1.84030145]
[1747103636662,0.01179067,102130.0,102120.0,1.84030145]
[1747103636865,0.02158163,102130.0,102120.0,1.84030145]
[1747103637103,0.04116374,102130.0,102120.0,1.84030145]
[1747103637282,0.24678402,102130.0,102120.0,1.51661543]
[1747103637519,0.23699335,102130.0,102120.0,1.55313552]
[1747103637704,0.23699335,102130.0,102120.0,1.56292734]
[1747103638141,0.21741153,102130.0,102120.0,0.64890609]
[1747103638548,0.21741153,102130.0,102120.0,0.38208804]
[1747103638777,0.21741153,102130.0,102120.0,0.29436524]
[1747103638986,0.21741153,102130.0,102120.0,0.05662889]
[1747103639202,0.21741153,102130.0,102120.0,0.02578804]
[1747103639418,0.21741153,102130.0,102120.0,0.01048804]
[1747103641421,0.21741153,102130.0,102120.0,0.26276524]
[1747103641912,0.21741153,102130.0,102120.0,0.29346524]
[1747103642964,0.21741153,102130.0,102120.0,0.26276524]
[1747103643972,0.21741153,102130.0,102120.0,0.01048804]
[1747103644201,0.31326583,102130.0,102120.0,0.01048804]
[1747103644661,0.32946583,102130.0,102120.0,0.01048804]
[1747103644892,0.33629702,102130.0,102120.0,0.01048804]
[1747103645581,0.32009702,102130.0,102120.0,0.01048804]
[1747103647510,0.35179702,102130.0,102120.0,0.01048804]
[1747103648530,0.70179702,102130.0,102120.0,0.01048804]
[1747103650096,0.91751702,102130.0,102120.0,0.00048804]
[1747103650315,1.17079422,102130.0,102120.0,0.00048804]
[1747103650527,1.17179422,102130.0,102120.0,0.00048804]
[1747103651546,0.91951702,102130.0,102120.0,0.00048804]
[1747103651778,1.47179422,102130.0,102120.0,0.00048804]
[1747103652961,1.46179422,102130.0,102120.0,0.00048804]
[1747103664580,0.21547433,102100.0,102090.0,0.3618819]
[1747103664837,0.31132863,102100.0,102090.0,0.36202811]
[1747103665864,0.31232863,102100.0,102090.0,0.37302811]
[1747103666286,0.31232863,102100.0,102090.0,0.29472341]
[1747103666928,0.31332863,102100.0,102090.0,0.30572341]
[1747103667982,0.32797057,102100.0,102090.0,0.30572341]
[1747103668217,0.002,102100.0,102090.0,1.3555917]
[1747103668425,0.002,102100.0,102090.0,1.4338964]
[1747103668888,0.002,102100.0,102090.0,1.5297507]
[1747103669938,0.02158757,102100.0,102090.0,1.451446]
[1747103670151,0.02158747,102100.0,102090.0,1.451446]
[1747103670372,0.002,102100.0,102090.0,1.5473003]
[1747103671647,0.22524391,102120.0,102110.0,0.49428525]
[1747103671864,0.2154519,102120.0,102110.0,0.29841805]
[1747103672790,0.2164519,102120.0,102110.0,0.30441805]
[1747103673225,0.2174519,102120.0,102110.0,0.30941805]
[1747103673883,0.2174519,102120.0,102110.0,0.34231871]
[1747103674523,0.21745151,102120.0,102110.0,0.54797927]
[1747103674705,0.21745151,102120.0,102110.0,0.35211207]
[1747103674932,0.21745151,102120.0,102110.0,0.55777243]
[1747103675215,0.21745151,102120.0,102110.0,0.5675655]
[1747103675488,0.21745151,102120.0,102110.0,0.55777243]
[1747103676199,0.02158335,102120.0,102110.0,1.04655528]
[1747103676440,0.05095977,102120.0,102110.0,1.04655528]
[1747103676670,0.04116824,102120.0,102110.0,0.7844854]
[1747103676899,0.23701626,102120.0,102110.0,0.7844854]
[1747103677148,0.23701684,102120.0,102110.0,0.79427828]
[1747103677816,0.23701684,102120.0,102110.0,0.75158474]
[1747103678051,0.22722492,102120.0,102110.0,0.75158474]
[1747103678369,0.21743252,102120.0,102110.0,0.76137762]
[1747103678591,0.0215845,102120.0,102110.0,0.76137704]
[1747103678809,0.0215845,102120.0,102110.0,0.75158426]
[1747103679039,0.02158412,102120.0,102110.0,0.85723124]
[1747103679282,0.03137642,102120.0,102110.0,0.85723124]
[1747103679500,0.21761561,102140.0,102130.0,0.23974324]
[1747103679501,0.21242489,102140.0,102130.0,0.23974324]
[1747103679777,0.22221508,102140.0,102130.0,0.52332053]
[1747103680022,0.0097899,102140.0,102130.0,0.61917483]
[1747103680290,0.23496948,102140.0,102130.0,0.59959263]
[1747103680517,0.20559996,102140.0,102130.0,0.40376379]
[1747103680746,0.20759996,102140.0,102130.0,0.41411856]
[1747103680981,0.19780967,102140.0,102130.0,0.41411856]
[1747103681672,0.19780967,102140.0,102130.0,0.31826426]
[1747103683737,0.19780967,102140.0,102130.0,0.52388444]
[1747103683973,0.19780967,102140.0,102130.0,0.31826426]
[1747103684722,0.19780967,102140.0,102130.0,0.06598706]
[1747103684945,0.19780967,102140.0,102130.0,0.31826426]
[1747103688465,0.19780967,102140.0,102130.0,0.4239099]
[1747103688700,0.19780967,102140.0,102130.0,0.42391]
[1747103688916,0.19780967,102140.0,102130.0,0.41411856]
[1747103689820,0.19780967,102140.0,102130.0,0.31826426]
[1747103693524,0.20760015,102140.0,102130.0,0.52388435]
[1747103694160,0.20760015,102140.0,102130.0,0.5336755]
[1747103694355,0.20760015,102140.0,102130.0,0.52388435]
[1747103694571,0.20760015,102140.0,102130.0,0.52388454]
[1747103694800,0.20760015,102140.0,102130.0,0.61419313]
[1747103695232,0.20760015,102140.0,102130.0,0.31826426]
[1747103700591,0.20760015,102140.0,102130.0,0.02014621]
[1747103700726,0.33455445,102140.0,102130.0,0.02014621]
[1747103700918,0.67455445,102140.0,102130.0,0.02014621]
[1747103701175,0.92683165,102140.0,102130.0,0.02014621]
[1747103701592,0.93683165,102140.0,102130.0,0.02014621]
[1747103701789,1.24365663,102140.0,102130.0,0.02014621]
[1747103701992,1.5719121,102140.0,102130.0,0.02014621]
[1747103702370,1.3196349,102140.0,102130.0,0.02014621]
[1747103702603,1.1407149,102140.0,102130.0,0.01114621]
[1747103702799,1.4507149,102140.0,102130.0,0.01114621]
[1747103703004,1.42645943,102140.0,102130.0,0.01114621]
[1747103703663,1.42545943,102140.0,102130.0,0.00014621]
[1747103704064,1.42845943,102140.0,102130.0,0.00014621]
[1747103704580,1.11845943,102140.0,102130.0,0.00014621]
[1747103704795,1.12845943,102140.0,102130.0,0.00014621]
[1747103705160,0.68637943,102140.0,102130.0,0.00014621]
[1747103705364,0.76285943,102140.0,102130.0,0.00014621]
[1747103705573,0.74735943,102140.0,102130.0,0.00014621]
[1747103705910,1.11945943,102140.0,102130.0,0.00014621]
[1747103706798,0.65527943,102140.0,102130.0,0.00014621]
[1747103707017,0.11946947,102140.0,102130.0,0.49933446]
[1747103707225,0.23218024,102140.0,102130.0,0.37977771]
[1747103707425,0.22139034,102140.0,102130.0,0.37977771]
[1747103707634,0.22139034,102140.0,102130.0,0.28392341]
[1747103707837,0.21839034,102140.0,102130.0,0.28392341]
[1747103708041,0.21539034,102140.0,102130.0,0.28392341]
[1747103708246,0.21639034,102140.0,102130.0,0.28392341]
[1747103709104,0.31224464,102140.0,102130.0,0.01644621]
[1747103709327,0.32774464,102140.0,102130.0,0.00014621]
[1747103709530,0.3375575,102140.0,102130.0,0.00014621]
[1747103709859,0.3345575,102140.0,102130.0,0.00014621]
[1747103710293,0.3200575,102140.0,102130.0,0.00014621]
[1747103710495,0.3200575,102140.0,102130.0,0.25242341]
[1747103710716,0.3200575,102140.0,102130.0,0.28372341]
[1747103712498,0.3200575,102140.0,102130.0,0.03144621]
[1747103713384,0.3200575,102140.0,102130.0,0.4893435]
[1747103713385,0.2242032,102140.0,102130.0,0.4893435]
[1747103713602,0.2242032,102140.0,102130.0,0.50388435]
[1747103713842,0.21739034,102140.0,102130.0,0.50388444]
[1747103714064,0.20660015,102140.0,102130.0,0.59973874]
[1747103714284,0.02058067,102140.0,102130.0,0.52346626]
[1747103714496,0.03036971,102140.0,102130.0,0.53325712]
[1747103714707,0.23496986,102140.0,102130.0,0.51367549]
[1747103714925,0.22518024,102140.0,102130.0,0.51767549]
[1747103715160,0.22518024,102140.0,102130.0,0.51367549]
[1747103715371,0.22518024,102140.0,102130.0,0.51767549]
[1747103715984,0.22518024,102140.0,102130.0,0.53325712]
[1747103715985,0.01958009,102140.0,102130.0,0.53325712]
[1747103716216,0.22618005,102140.0,102130.0,0.61952979]
[1747103716456,0.22718005,102140.0,102130.0,0.62952979]
[1747103716687,0.21739015,102140.0,102130.0,0.62952999]
[1747103717017,0.21739015,102140.0,102130.0,0.63932095]
[1747103717490,0.01178971,102140.0,102130.0,0.64911172]
[1747103717762,0.04116009,102140.0,102130.0,0.64911172]
[1747103717957,0.05095047,102140.0,102130.0,0.64911172]
[1747103718945,0.05095124,102140.0,102130.0,0.64911172]
[1747103719354,0.24676091,102140.0,102130.0,0.53367569]
[1747103719553,0.22718082,102140.0,102130.0,0.53367569]
[1747103719762,0.22718082,102140.0,102130.0,0.74971569]
[1747103720145,0.22718082,102140.0,102130.0,0.75950665]
[1747103720377,0.03137115,102140.0,102130.0,0.76929751]
[1747103721592,0.22718082,102140.0,102130.0,0.74971559]
[1747103721984,0.22718082,102140.0,102130.0,0.76929741]
[1747103722354,0.22718082,102140.0,102130.0,0.75950655]
[1747103722756,0.22718082,102140.0,102130.0,1.36951985]
[1747103722757,0.002,102140.0,102130.0,1.36951985]
[1747103722981,0.20554385,102170.0,102160.0,0.23601969]
[1747103723220,0.19580312,102190.0,102170.0,0.2153269]
[1747103723436,0.00978588,102180.0,102170.0,0.22511364]
[1747103723637,0.00978588,102180.0,102170.0,0.49309103]
[1747103723638,0.03914505,102180.0,102170.0,0.49309103]
[1747103723848,0.24466472,102180.0,102170.0,0.4833041]
[1747103724074,0.21530622,102180.0,102170.0,0.0157]
[1747103724502,0.21579248,102180.0,102170.0,0.0157]
[1747103725467,0.21679248,102180.0,102170.0,0.0157]
[1747103725659,0.22079248,102180.0,102170.0,0.0157]
[1747103725855,0.22079248,102180.0,102170.0,0.032]
[1747103726479,0.21679248,102180.0,102170.0,0.032]
[1747103726708,0.21579248,102180.0,102170.0,0.032]
[1747103726911,0.21579248,102180.0,102170.0,0.54366475]
[1747103727085,0.20600593,102180.0,102170.0,0.2842772]
[1747103727288,0.20600593,102180.0,102170.0,0.2852772]
[1747103727698,0.20600593,102180.0,102170.0,0.2862772]
[1747103729525,0.20600593,102180.0,102170.0,0.49181688]
[1747103729908,0.20600593,102180.0,102170.0,0.034]
[1747103730117,0.20600593,102180.0,102170.0,0.2862772]
[1747103730564,0.20600593,102180.0,102170.0,0.2960648]
[1747103731006,0.20600593,102180.0,102170.0,0.50160438]
[1747103731352,0.21308632,102180.0,102170.0,0.50160438]
[1747103731662,0.21308632,102180.0,102170.0,0.49181697]
[1747103732817,0.21308632,102180.0,102170.0,0.002]